[Event "Titled Tuesday Blitz May 4 2021"]
[White "Zemerov, Vladimir"]
[Black "Loy, Konstantin"]
[WhiteFideId "4111583"]
[BlackFideId "14122499"]
[WhiteElo "2277"]
[BlackElo "2084"]
[Result "1-0"]
[Round "06"]
[TimeControl "180+1"]
[Date "2021.05.04"]
[WhiteClock "0:02:13"]
[BlackClock "0:00:01"]

1. e4 {[%clk 0:03:00]}  c5 {[%clk 0:02:59]} 2. Nf3 {[%clk 0:03:00]}  d6 {[%clk 0:03:00]} 3. d4 {[%clk 0:03:00]}  cxd4 {[%clk 0:03:01]} 4. Qxd4 {[%clk 0:03:00]}  Nc6 {[%clk 0:02:59]} 5. Qe3 {[%clk 0:02:57]}  g6 {[%clk 0:02:57]} 6. c4 {[%clk 0:02:52]}  Bg7 {[%clk 0:02:56]} 7. h3 {[%clk 0:02:49]}  Nf6 {[%clk 0:02:56]} 8. Nc3 {[%clk 0:02:47]}  O-O {[%clk 0:02:52]} 9. Be2 {[%clk 0:02:47]}  Qa5 {[%clk 0:02:50]} 10. O-O {[%clk 0:02:47]}  Be6 {[%clk 0:02:49]} 11. Bd2 {[%clk 0:02:46]}  Rfc8 {[%clk 0:02:46]} 12. Nd5 {[%clk 0:02:45]}  Qd8 {[%clk 0:02:44]} 13. Rac1 {[%clk 0:02:41]}  Nd7 {[%clk 0:02:09]} 14. Bc3 {[%clk 0:02:38]}  Bxd5 {[%clk 0:02:05]} 15. exd5 {[%clk 0:02:32]}  Nce5 {[%clk 0:02:05]} 16. Nxe5 {[%clk 0:02:27]}  Nxe5 {[%clk 0:02:04]} 17. b3 {[%clk 0:02:26]}  a5 {[%clk 0:01:46]} 18. f4 {[%clk 0:02:26]}  Nd7 {[%clk 0:01:45]} 19. Bxg7 {[%clk 0:02:23]}  Kxg7 {[%clk 0:01:44]} 20. Bg4 {[%clk 0:02:21]}  h5 {[%clk 0:01:08]} 21. Bxd7 {[%clk 0:02:17]}  Qxd7 {[%clk 0:01:07]} 22. f5 {[%clk 0:02:16]}  Rf8 {[%clk 0:00:56]} 23. Rce1 {[%clk 0:02:15]}  Rae8 {[%clk 0:00:49]} 24. Qg5 {[%clk 0:02:15]}  a4 {[%clk 0:00:02]} 25. Kh2 {[%clk 0:02:13]}  axb3 {[%clk 0:00:01]} 26. axb3 {[%clk 0:02:13]} 1-0


[Site "https://www.chess.com"]

[Event "Titled Tuesday Blitz May 4 2021"]
[White "Zhurbinsky, David"]
[Black "Gabdushev, Ruslan"]
[WhiteFideId "2072904"]
[BlackFideId "4137833"]
[WhiteElo "2479"]
[BlackElo "2312"]
[Result "1-0"]
[Round "06"]
[TimeControl "180+1"]
[Date "2021.05.04"]
[WhiteClock "0:00:18"]
[BlackClock "0:00:13"]

1. e4 {[%clk 0:03:00]}  Nc6 {[%clk 0:02:59]} 2. d4 {[%clk 0:03:00]}  d5 {[%clk 0:02:59]} 3. Bb5 {[%clk 0:02:51]}  a6 {[%clk 0:02:49]} 4. Bxc6+ {[%clk 0:02:44]}  bxc6 {[%clk 0:02:48]} 5. Nc3 {[%clk 0:02:45]}  e6 {[%clk 0:02:40]} 6. Nf3 {[%clk 0:02:43]}  a5 {[%clk 0:02:38]} 7. O-O {[%clk 0:02:42]}  Ba6 {[%clk 0:02:37]} 8. Re1 {[%clk 0:02:42]}  Nf6 {[%clk 0:02:37]} 9. Bg5 {[%clk 0:02:38]}  Be7 {[%clk 0:02:37]} 10. e5 {[%clk 0:02:25]}  Nd7 {[%clk 0:02:36]} 11. Bxe7 {[%clk 0:02:25]}  Qxe7 {[%clk 0:02:35]} 12. Ne2 {[%clk 0:02:21]}  c5 {[%clk 0:02:32]} 13. c3 {[%clk 0:02:20]}  O-O {[%clk 0:02:23]} 14. Ng3 {[%clk 0:02:15]}  cxd4 {[%clk 0:02:21]} 15. cxd4 {[%clk 0:02:15]}  c5 {[%clk 0:02:20]} 16. Rc1 {[%clk 0:02:10]}  Rfb8 {[%clk 0:02:12]} 17. b3 {[%clk 0:02:09]}  a4 {[%clk 0:02:11]} 18. dxc5 {[%clk 0:02:00]}  axb3 {[%clk 0:01:58]} 19. axb3 {[%clk 0:01:39]}  Nxc5 {[%clk 0:01:57]} 20. Nd4 {[%clk 0:01:36]}  Nd3 {[%clk 0:01:36]} 21. Nc6 {[%clk 0:01:36]}  Qb7 {[%clk 0:01:34]} 22. Nxb8 {[%clk 0:01:34]}  Rxb8 {[%clk 0:01:33]} 23. Rc3 {[%clk 0:01:26]}  Nxe1 {[%clk 0:01:26]} 24. Qxe1 {[%clk 0:01:26]}  Qb4 {[%clk 0:01:22]} 25. Qc1 {[%clk 0:01:18]}  h6 {[%clk 0:01:18]} 26. Nh5 {[%clk 0:01:13]}  Qg4 {[%clk 0:01:11]} 27. Nf6+ {[%clk 0:01:11]}  gxf6 {[%clk 0:01:05]} 28. Rg3 {[%clk 0:01:12]}  f5 {[%clk 0:01:06]} 29. Rxg4+ {[%clk 0:01:06]}  fxg4 {[%clk 0:01:05]} 30. Qxh6 {[%clk 0:01:04]}  Rxb3 {[%clk 0:01:04]} 31. Qg5+ {[%clk 0:01:04]}  Kf8 {[%clk 0:01:03]} 32. h4 {[%clk 0:00:54]}  gxh3 {[%clk 0:00:59]} 33. Qh6+ {[%clk 0:00:53]}  Ke8 {[%clk 0:00:57]} 34. gxh3 {[%clk 0:00:52]}  Rb1+ {[%clk 0:00:54]} 35. Kg2 {[%clk 0:00:49]}  Bd3 {[%clk 0:00:53]} 36. Qh8+ {[%clk 0:00:47]}  Kd7 {[%clk 0:00:53]} 37. Qf6 {[%clk 0:00:45]}  Be4+ {[%clk 0:00:46]} 38. f3 {[%clk 0:00:45]}  Bg6 {[%clk 0:00:45]} 39. h4 {[%clk 0:00:44]}  Rb2+ {[%clk 0:00:35]} 40. Kg3 {[%clk 0:00:44]}  Rb1 {[%clk 0:00:35]} 41. Qf4 {[%clk 0:00:33]}  Rg1+ {[%clk 0:00:29]} 42. Kf2 {[%clk 0:00:33]}  Rh1 {[%clk 0:00:29]} 43. Qa4+ {[%clk 0:00:30]}  Ke7 {[%clk 0:00:27]} 44. Kg2 {[%clk 0:00:30]}  Rb1 {[%clk 0:00:23]} 45. Qg4 {[%clk 0:00:26]}  Rb2+ {[%clk 0:00:22]} 46. Kg3 {[%clk 0:00:24]}  Rb1 {[%clk 0:00:22]} 47. Kf2 {[%clk 0:00:20]}  Rb2+ {[%clk 0:00:19]} 48. Ke3 {[%clk 0:00:20]}  Rh2 {[%clk 0:00:18]} 49. Qg5+ {[%clk 0:00:20]}  Kf8 {[%clk 0:00:18]} 50. Qf6 {[%clk 0:00:19]}  Rh1 {[%clk 0:00:16]} 51. Kd4 {[%clk 0:00:18]}  Rd1+ {[%clk 0:00:15]} 52. Kc5 {[%clk 0:00:19]}  d4 {[%clk 0:00:14]} 53. Kd6 {[%clk 0:00:18]}  d3 {[%clk 0:00:13]} 54. Qh8# {[%clk 0:00:18]} 1-0


[Site "https://www.chess.com"]

[Event "Titled Tuesday Blitz May 4 2021"]
[White "Aditya Mittal"]
[Black "Indjic, Aleksandar"]
[WhiteFideId "35042025"]
[BlackFideId "911925"]
[WhiteElo "2171"]
[BlackElo "2591"]
[Result "0-1"]
[Round "07"]
[TimeControl "180+1"]
[Date "2021.05.04"]
[WhiteClock "0:00:01"]
[BlackClock "0:00:57"]

1. d4 {[%clk 0:03:00]}  Nf6 {[%clk 0:02:56]} 2. c4 {[%clk 0:03:01]}  c5 {[%clk 0:02:55]} 3. d5 {[%clk 0:03:01]}  e6 {[%clk 0:02:55]} 4. Nc3 {[%clk 0:03:01]}  exd5 {[%clk 0:02:56]} 5. cxd5 {[%clk 0:03:02]}  d6 {[%clk 0:02:56]} 6. e4 {[%clk 0:03:01]}  g6 {[%clk 0:02:56]} 7. Be2 {[%clk 0:02:59]}  Bg7 {[%clk 0:02:55]} 8. Be3 {[%clk 0:02:59]}  a6 {[%clk 0:02:50]} 9. a4 {[%clk 0:02:59]}  Qe7 {[%clk 0:02:50]} 10. Qc2 {[%clk 0:02:56]}  Ng4 {[%clk 0:02:43]} 11. Bf4 {[%clk 0:02:53]}  f5 {[%clk 0:02:41]} 12. Bxg4 {[%clk 0:02:19]}  fxg4 {[%clk 0:02:39]} 13. h3 {[%clk 0:02:20]}  O-O {[%clk 0:02:39]} 14. Bg3 {[%clk 0:02:17]}  gxh3 {[%clk 0:02:35]} 15. Nxh3 {[%clk 0:02:18]}  Nd7 {[%clk 0:02:34]} 16. O-O-O {[%clk 0:02:13]}  b5 {[%clk 0:02:33]} 17. Nf4 {[%clk 0:01:59]}  b4 {[%clk 0:02:26]} 18. Nce2 {[%clk 0:01:48]}  b3 {[%clk 0:02:11]} 19. Qd2 {[%clk 0:01:32]}  Ne5 {[%clk 0:02:09]} 20. Nd3 {[%clk 0:01:21]}  Nc4 {[%clk 0:02:02]} 21. Qe1 {[%clk 0:01:19]}  Qxe4 {[%clk 0:01:59]} 22. Rh4 {[%clk 0:00:55]}  Bg4 {[%clk 0:01:53]} 23. f3 {[%clk 0:00:46]}  Qe3+ {[%clk 0:01:50]} 24. Kb1 {[%clk 0:00:46]}  Bf5 {[%clk 0:01:50]} 25. Nc1 {[%clk 0:00:34]}  Qxe1 {[%clk 0:01:40]} 26. Rxe1 {[%clk 0:00:35]}  Nd2+ {[%clk 0:01:40]} 27. Ka1 {[%clk 0:00:34]}  c4 {[%clk 0:01:40]} 28. Nf2 {[%clk 0:00:25]}  c3 {[%clk 0:01:39]} 29. Nfd3 {[%clk 0:00:25]}  Rac8 {[%clk 0:01:31]} 30. Bxd6 {[%clk 0:00:23]}  cxb2+ {[%clk 0:01:31]} 31. Nxb2 {[%clk 0:00:23]}  Rc2 {[%clk 0:01:30]} 32. Ba3 {[%clk 0:00:22]}  Rfc8 {[%clk 0:01:28]} 33. Rhh1 {[%clk 0:00:20]}  a5 {[%clk 0:01:26]} 34. g4 {[%clk 0:00:18]}  Nc4 {[%clk 0:01:20]} 35. gxf5 {[%clk 0:00:10]}  Nxa3 {[%clk 0:01:17]} 36. Nd3 {[%clk 0:00:10]}  Rd2 {[%clk 0:01:02]} 37. Rd1 {[%clk 0:00:05]}  Rcc2 {[%clk 0:00:58]} 38. Rxd2 {[%clk 0:00:04]}  Rxd2 {[%clk 0:00:59]} 39. f6 {[%clk 0:00:01]}  Bxf6 {[%clk 0:00:58]} 40. Rd1 {[%clk 0:00:01]}  Rxd1+ {[%clk 0:00:57]} 0-1


[Site "https://www.chess.com"]

[Event "Titled Tuesday Blitz May 4 2021"]
[White "Alice, Mateus Felizardo Viageiro"]
[Black "Ljukin, Sergei"]
[WhiteFideId "14800047"]
[BlackFideId "14102200"]
[WhiteElo "2189"]
[BlackElo "2287"]
[Result "0-1"]
[Round "07"]
[TimeControl "180+1"]
[Date "2021.05.04"]
[WhiteClock "0:01:21"]
[BlackClock "0:01:19"]

1. e4 {[%clk 0:03:00]}  e6 {[%clk 0:02:59]} 2. Qe2 {[%clk 0:03:00]}  Be7 {[%clk 0:02:58]} 3. d4 {[%clk 0:02:59]}  d5 {[%clk 0:02:58]} 4. Nf3 {[%clk 0:02:55]}  Nf6 {[%clk 0:02:55]} 5. Nc3 {[%clk 0:02:54]}  O-O {[%clk 0:02:54]} 6. e5 {[%clk 0:02:53]}  Nfd7 {[%clk 0:02:53]} 7. Be3 {[%clk 0:02:50]}  c5 {[%clk 0:02:53]} 8. O-O-O {[%clk 0:02:49]}  Nc6 {[%clk 0:02:50]} 9. dxc5 {[%clk 0:02:46]}  Nxc5 {[%clk 0:02:48]} 10. h4 {[%clk 0:02:41]}  a6 {[%clk 0:02:44]} 11. g4 {[%clk 0:02:39]}  b5 {[%clk 0:02:43]} 12. g5 {[%clk 0:02:29]}  b4 {[%clk 0:02:43]} 13. Bxc5 {[%clk 0:02:26]}  bxc3 {[%clk 0:02:41]} 14. Bxe7 {[%clk 0:02:24]}  cxb2+ {[%clk 0:02:40]} 15. Kb1 {[%clk 0:02:24]}  Qxe7 {[%clk 0:02:38]} 16. Nh2 {[%clk 0:02:24]}  Rb8 {[%clk 0:02:27]} 17. Ng4 {[%clk 0:02:23]}  Qa3 {[%clk 0:02:25]} 18. Rh3 {[%clk 0:02:17]}  Qc5 {[%clk 0:02:08]} 19. Nf6+ {[%clk 0:02:04]}  Kh8 {[%clk 0:01:58]} 20. Qh5 {[%clk 0:01:57]}  gxf6 {[%clk 0:01:56]} 21. gxf6 {[%clk 0:01:56]}  Nxe5 {[%clk 0:01:54]} 22. Qxe5 {[%clk 0:01:49]}  Bd7 {[%clk 0:01:50]} 23. Bd3 {[%clk 0:01:47]}  Bb5 {[%clk 0:01:43]} 24. Bxh7 {[%clk 0:01:47]}  Bc4 {[%clk 0:01:34]} 25. Rb3 {[%clk 0:01:41]}  Bxb3 {[%clk 0:01:32]} 26. axb3 {[%clk 0:01:41]}  Qa3 {[%clk 0:01:22]} 27. Qxb2 {[%clk 0:01:22]}  Qxb2+ {[%clk 0:01:22]} 28. Kxb2 {[%clk 0:01:22]}  Kxh7 {[%clk 0:01:22]} 29. f4 {[%clk 0:01:20]}  Rg8 {[%clk 0:01:19]} 30. f5 {[%clk 0:01:21]} 0-1


[Site "https://www.chess.com"]

[Event "Titled Tuesday Blitz May 4 2021"]
[White "Angel_Hranitel_37"]
[Black "Martirosyan, Haik M."]
[BlackFideId "13306553"]
[WhiteElo "2554"]
[BlackElo "2597"]
[Result "0-1"]
[Round "07"]
[TimeControl "180+1"]
[Date "2021.05.04"]
[WhiteClock "0:00:06"]
[BlackClock "0:01:39"]

1. d4 {[%clk 0:03:00]}  g6 {[%clk 0:02:59]} 2. Nf3 {[%clk 0:03:00]}  Bg7 {[%clk 0:02:59]} 3. g3 {[%clk 0:03:00]}  Nf6 {[%clk 0:02:59]} 4. Bg2 {[%clk 0:03:01]}  d6 {[%clk 0:03:00]} 5. O-O {[%clk 0:03:02]}  O-O {[%clk 0:03:01]} 6. c4 {[%clk 0:03:02]}  Bf5 {[%clk 0:03:02]} 7. Nc3 {[%clk 0:02:51]}  Ne4 {[%clk 0:03:02]} 8. Nb1 {[%clk 0:02:51]}  Nf6 {[%clk 0:03:00]} 9. Nc3 {[%clk 0:02:51]}  Ne4 {[%clk 0:03:00]} 10. Nb1 {[%clk 0:02:51]}  Bc8 {[%clk 0:02:57]} 11. Nfd2 {[%clk 0:02:37]}  Nxd2 {[%clk 0:02:54]} 12. Qxd2 {[%clk 0:02:37]}  Nc6 {[%clk 0:02:55]} 13. e3 {[%clk 0:02:32]}  e5 {[%clk 0:02:54]} 14. dxe5 {[%clk 0:02:17]}  Nxe5 {[%clk 0:02:54]} 15. Na3 {[%clk 0:02:14]}  c6 {[%clk 0:02:46]} 16. h3 {[%clk 0:01:58]}  Bxh3 {[%clk 0:02:45]} 17. Qb4 {[%clk 0:01:47]}  Qd7 {[%clk 0:02:40]} 18. Rd1 {[%clk 0:01:45]}  Bg4 {[%clk 0:02:35]} 19. Rxd6 {[%clk 0:01:38]}  Qf5 {[%clk 0:02:35]} 20. f4 {[%clk 0:01:27]}  Nf3+ {[%clk 0:02:27]} 21. Kf2 {[%clk 0:01:27]}  Ng5 {[%clk 0:02:13]} 22. c5 {[%clk 0:01:10]}  Rfe8 {[%clk 0:02:13]} 23. Bd2 {[%clk 0:00:55]}  a5 {[%clk 0:02:03]} 24. Qxb7 {[%clk 0:00:41]}  Ne4+ {[%clk 0:02:03]} 25. Bxe4 {[%clk 0:00:41]}  Qxe4 {[%clk 0:02:04]} 26. Qxc6 {[%clk 0:00:42]}  Qxc6 {[%clk 0:02:04]} 27. Rxc6 {[%clk 0:00:43]}  Bxb2 {[%clk 0:02:04]} 28. Nc2 {[%clk 0:00:30]}  Bxa1 {[%clk 0:01:46]} 29. Nxa1 {[%clk 0:00:31]}  a4 {[%clk 0:01:46]} 30. Nc2 {[%clk 0:00:29]}  a3 {[%clk 0:01:46]} 31. Bb4 {[%clk 0:00:22]}  Reb8 {[%clk 0:01:46]} 32. Bxa3 {[%clk 0:00:17]}  Bd1 {[%clk 0:01:42]} 33. Bb4 {[%clk 0:00:02]}  Bxc2 {[%clk 0:01:42]} 34. a3 {[%clk 0:00:03]}  Be4 {[%clk 0:01:40]} 35. Rd6 {[%clk 0:00:03]}  Rd8 {[%clk 0:01:41]} 36. Ke2 {[%clk 0:00:03]}  Rxd6 {[%clk 0:01:41]} 37. cxd6 {[%clk 0:00:04]}  f5 {[%clk 0:01:37]} 38. Kd2 {[%clk 0:00:04]}  Kf7 {[%clk 0:01:37]} 39. Kc3 {[%clk 0:00:05]}  Ke6 {[%clk 0:01:38]} 40. Kd4 {[%clk 0:00:06]}  Kd7 {[%clk 0:01:37]} 41. Ke5 {[%clk 0:00:06]}  Rc8 {[%clk 0:01:37]} 42. Kf6 {[%clk 0:00:06]}  Rc2 {[%clk 0:01:36]} 43. Kg7 {[%clk 0:00:07]}  Rg2 {[%clk 0:01:36]} 44. Kxh7 {[%clk 0:00:07]}  Rxg3 {[%clk 0:01:37]} 45. Bc5 {[%clk 0:00:07]}  g5 {[%clk 0:01:37]} 46. fxg5 {[%clk 0:00:07]}  f4+ {[%clk 0:01:38]} 47. Kh6 {[%clk 0:00:06]}  f3 {[%clk 0:01:38]} 48. g6 {[%clk 0:00:07]}  f2 {[%clk 0:01:39]} 49. g7 {[%clk 0:00:06]}  f1=Q {[%clk 0:01:39]} 0-1


[Site "https://www.chess.com"]

[Event "Titled Tuesday Blitz May 4 2021"]
[White "Arabidze, Meri"]
[Black "Kovalev, Vladislav"]
[WhiteFideId "13604040"]
[BlackFideId "13504398"]
[WhiteElo "2432"]
[BlackElo "2573"]
[Result "0-1"]
[Round "07"]
[TimeControl "180+1"]
[Date "2021.05.04"]
[WhiteClock "0:00:19"]
[BlackClock "0:00:41"]

1. Nf3 {[%clk 0:03:00]}  Nf6 {[%clk 0:02:59]} 2. d4 {[%clk 0:03:00]}  g6 {[%clk 0:03:00]} 3. c4 {[%clk 0:03:01]}  Bg7 {[%clk 0:03:01]} 4. g3 {[%clk 0:03:01]}  O-O {[%clk 0:03:01]} 5. Bg2 {[%clk 0:03:02]}  d6 {[%clk 0:03:02]} 6. O-O {[%clk 0:03:02]}  Nc6 {[%clk 0:03:03]} 7. Nc3 {[%clk 0:03:03]}  e5 {[%clk 0:03:04]} 8. dxe5 {[%clk 0:03:03]}  Nxe5 {[%clk 0:03:04]} 9. b3 {[%clk 0:03:03]}  Nxf3+ {[%clk 0:03:01]} 10. Bxf3 {[%clk 0:03:02]}  Re8 {[%clk 0:02:47]} 11. Bb2 {[%clk 0:03:00]}  Rb8 {[%clk 0:02:46]} 12. Qd2 {[%clk 0:02:55]}  a6 {[%clk 0:02:46]} 13. Rad1 {[%clk 0:02:52]}  Qe7 {[%clk 0:02:45]} 14. Rfe1 {[%clk 0:02:47]}  Be6 {[%clk 0:02:38]} 15. e4 {[%clk 0:02:45]}  Nd7 {[%clk 0:02:19]} 16. Nd5 {[%clk 0:02:34]}  Bxd5 {[%clk 0:02:19]} 17. exd5 {[%clk 0:02:34]}  Qf8 {[%clk 0:02:09]} 18. Bg2 {[%clk 0:02:34]}  Bxb2 {[%clk 0:02:07]} 19. Qxb2 {[%clk 0:02:35]}  Rxe1+ {[%clk 0:02:07]} 20. Rxe1 {[%clk 0:02:34]}  Re8 {[%clk 0:02:08]} 21. Rxe8 {[%clk 0:02:27]}  Qxe8 {[%clk 0:02:09]} 22. Qd2 {[%clk 0:02:27]}  Qe5 {[%clk 0:02:07]} 23. h4 {[%clk 0:02:25]}  Nc5 {[%clk 0:02:03]} 24. Kh2 {[%clk 0:02:13]}  b6 {[%clk 0:02:02]} 25. b4 {[%clk 0:02:06]}  Nd7 {[%clk 0:01:55]} 26. a3 {[%clk 0:02:01]}  Nf6 {[%clk 0:01:54]} 27. Bf3 {[%clk 0:01:56]}  h5 {[%clk 0:01:33]} 28. Kg2 {[%clk 0:01:55]}  Kg7 {[%clk 0:01:34]} 29. Kh2 {[%clk 0:01:35]}  Qa1 {[%clk 0:01:11]} 30. Qd3 {[%clk 0:01:34]}  Qe1 {[%clk 0:01:07]} 31. Kg2 {[%clk 0:01:34]}  Nd7 {[%clk 0:01:06]} 32. Qe2 {[%clk 0:01:25]}  Qc3 {[%clk 0:01:05]} 33. Qe7 {[%clk 0:01:10]}  Ne5 {[%clk 0:01:05]} 34. Be2 {[%clk 0:01:09]}  Qe1 {[%clk 0:01:04]} 35. Qxc7 {[%clk 0:00:30]}  Qxe2 {[%clk 0:01:02]} 36. Qxb6 {[%clk 0:00:28]}  Qe4+ {[%clk 0:00:46]} 37. Kf1 {[%clk 0:00:21]}  Qxc4+ {[%clk 0:00:46]} 38. Kg1 {[%clk 0:00:21]}  Nf3+ {[%clk 0:00:41]} 39. Kg2 {[%clk 0:00:21]}  Qxd5 {[%clk 0:00:40]} 40. Qxa6 {[%clk 0:00:19]}  Nxh4+ {[%clk 0:00:41]} 41. Kf1 {[%clk 0:00:19]}  Qd1# {[%clk 0:00:41]} 0-1


[Site "https://www.chess.com"]

[Event "Titled Tuesday Blitz May 4 2021"]
[White "Aradhya, Garg"]
[Black "Voege, Tobias"]
[WhiteFideId "25006746"]
[BlackFideId "1270513"]
[WhiteElo "2146"]
[BlackElo "2283"]
[Result "1-0"]
[Round "07"]
[TimeControl "180+1"]
[Date "2021.05.04"]
[WhiteClock "0:00:20"]
[BlackClock "0:00:06"]

1. d4 {[%clk 0:03:00]}  d5 {[%clk 0:02:59]} 2. c4 {[%clk 0:03:00]}  Nc6 {[%clk 0:02:59]} 3. Nf3 {[%clk 0:03:00]}  Bg4 {[%clk 0:02:58]} 4. Nc3 {[%clk 0:02:59]}  e6 {[%clk 0:02:57]} 5. Bg5 {[%clk 0:02:53]}  Be7 {[%clk 0:02:57]} 6. Bxe7 {[%clk 0:02:53]}  Ngxe7 {[%clk 0:02:58]} 7. e3 {[%clk 0:02:53]}  O-O {[%clk 0:02:57]} 8. Rc1 {[%clk 0:02:52]}  a6 {[%clk 0:02:50]} 9. h3 {[%clk 0:02:52]}  Bh5 {[%clk 0:02:50]} 10. a3 {[%clk 0:02:47]}  Re8 {[%clk 0:02:46]} 11. cxd5 {[%clk 0:02:34]}  Nxd5 {[%clk 0:02:43]} 12. Be2 {[%clk 0:02:34]}  Nxc3 {[%clk 0:02:24]} 13. Rxc3 {[%clk 0:02:32]}  Qf6 {[%clk 0:02:03]} 14. O-O {[%clk 0:02:30]}  Rad8 {[%clk 0:02:02]} 15. Qc2 {[%clk 0:02:21]}  Bg6 {[%clk 0:01:53]} 16. Bd3 {[%clk 0:02:20]}  Bxd3 {[%clk 0:01:45]} 17. Rxd3 {[%clk 0:02:19]}  Qf5 {[%clk 0:01:18]} 18. Rfd1 {[%clk 0:02:11]}  Rd6 {[%clk 0:01:01]} 19. Qb3 {[%clk 0:02:02]}  b5 {[%clk 0:00:37]} 20. Qc3 {[%clk 0:01:51]}  Rc8 {[%clk 0:00:29]} 21. b4 {[%clk 0:01:43]}  Ne7 {[%clk 0:00:20]} 22. Qc5 {[%clk 0:01:26]}  Nd5 {[%clk 0:00:18]} 23. R3d2 {[%clk 0:01:20]}  Nb6 {[%clk 0:00:17]} 24. Ne5 {[%clk 0:01:15]}  f6 {[%clk 0:00:15]} 25. Nd3 {[%clk 0:01:11]}  Nc4 {[%clk 0:00:16]} 26. Ra2 {[%clk 0:01:09]}  Qd5 {[%clk 0:00:14]} 27. Qxd5 {[%clk 0:01:02]}  Rxd5 {[%clk 0:00:15]} 28. a4 {[%clk 0:01:01]}  Rcd8 {[%clk 0:00:14]} 29. axb5 {[%clk 0:00:59]}  axb5 {[%clk 0:00:15]} 30. Ra7 {[%clk 0:00:59]}  e5 {[%clk 0:00:15]} 31. Rxc7 {[%clk 0:00:55]}  exd4 {[%clk 0:00:15]} 32. Nf4 {[%clk 0:00:55]}  R5d7 {[%clk 0:00:14]} 33. Rxd7 {[%clk 0:00:47]}  Rxd7 {[%clk 0:00:15]} 34. Rxd4 {[%clk 0:00:47]}  Ra7 {[%clk 0:00:13]} 35. Rd5 {[%clk 0:00:44]}  Ra1+ {[%clk 0:00:13]} 36. Kh2 {[%clk 0:00:44]}  Na3 {[%clk 0:00:13]} 37. Rd8+ {[%clk 0:00:42]}  Kf7 {[%clk 0:00:13]} 38. Rd7+ {[%clk 0:00:42]}  Ke8 {[%clk 0:00:11]} 39. Rxg7 {[%clk 0:00:42]}  Rb1 {[%clk 0:00:12]} 40. Nd5 {[%clk 0:00:40]}  Nc2 {[%clk 0:00:09]} 41. Rb7 {[%clk 0:00:37]}  Ne1 {[%clk 0:00:05]} 42. Nxf6+ {[%clk 0:00:33]}  Kf8 {[%clk 0:00:03]} 43. Nxh7+ {[%clk 0:00:33]}  Kg8 {[%clk 0:00:04]} 44. Nf6+ {[%clk 0:00:33]}  Kf8 {[%clk 0:00:05]} 45. Rxb5 {[%clk 0:00:33]}  Nd3 {[%clk 0:00:04]} 46. Ne4 {[%clk 0:00:30]}  Nc1 {[%clk 0:00:03]} 47. h4 {[%clk 0:00:24]}  Nb3 {[%clk 0:00:03]} 48. h5 {[%clk 0:00:24]}  Kg7 {[%clk 0:00:04]} 49. Rb7+ {[%clk 0:00:22]}  Kh6 {[%clk 0:00:04]} 50. g4 {[%clk 0:00:22]}  Nc1 {[%clk 0:00:02]} 51. Rb6+ {[%clk 0:00:22]}  Kg7 {[%clk 0:00:02]} 52. h6+ {[%clk 0:00:22]}  Kf8 {[%clk 0:00:01]} 53. Rb8+ {[%clk 0:00:21]}  Kf7 {[%clk 0:00:01]} 54. h7 {[%clk 0:00:21]}  Nd3 {[%clk 0:00:02]} 55. h8=Q {[%clk 0:00:21]}  Rh1+ {[%clk 0:00:03]} 56. Kxh1 {[%clk 0:00:20]}  Nxf2+ {[%clk 0:00:04]} 57. Nxf2 {[%clk 0:00:20]}  Ke6 {[%clk 0:00:04]} 58. Qd4 {[%clk 0:00:18]}  Kf7 {[%clk 0:00:05]} 59. Rb7+ {[%clk 0:00:19]}  Ke6 {[%clk 0:00:04]} 60. Qe4+ {[%clk 0:00:18]}  Kd6 {[%clk 0:00:05]} 61. Rb6+ {[%clk 0:00:18]}  Kd7 {[%clk 0:00:04]} 62. Qe6+ {[%clk 0:00:18]}  Kd8 {[%clk 0:00:04]} 63. Qd6+ {[%clk 0:00:18]}  Ke8 {[%clk 0:00:03]} 64. Rb8+ {[%clk 0:00:19]}  Kf7 {[%clk 0:00:04]} 65. Rf8+ {[%clk 0:00:19]}  Kg7 {[%clk 0:00:05]} 66. Qf6+ {[%clk 0:00:20]}  Kh7 {[%clk 0:00:06]} 67. Rh8# {[%clk 0:00:20]} 1-0


[Site "https://www.chess.com"]

[Event "Titled Tuesday Blitz May 4 2021"]
[White "Araujo Filho, Luiz Antonio Coel"]
[Black "PattyCastillo"]
[WhiteFideId "2130661"]
[WhiteElo "2237"]
[BlackElo "2013"]
[Result "1-0"]
[Round "07"]
[TimeControl "180+1"]
[Date "2021.05.04"]
[WhiteClock "0:01:41"]
[BlackClock "0:00:30"]

1. d4 {[%clk 0:03:00]}  d5 {[%clk 0:02:59]} 2. Nf3 {[%clk 0:03:00]}  Nf6 {[%clk 0:02:58]} 3. e3 {[%clk 0:03:01]}  c6 {[%clk 0:02:58]} 4. Nbd2 {[%clk 0:03:01]}  e6 {[%clk 0:02:58]} 5. Bd3 {[%clk 0:03:01]}  Bd6 {[%clk 0:02:58]} 6. Qe2 {[%clk 0:03:01]}  O-O {[%clk 0:02:58]} 7. O-O {[%clk 0:03:01]}  Qe7 {[%clk 0:02:58]} 8. e4 {[%clk 0:03:02]}  dxe4 {[%clk 0:02:58]} 9. Nxe4 {[%clk 0:03:02]}  Nxe4 {[%clk 0:02:58]} 10. Bxe4 {[%clk 0:03:03]}  h6 {[%clk 0:02:56]} 11. Re1 {[%clk 0:03:02]}  Nd7 {[%clk 0:02:55]} 12. c3 {[%clk 0:03:02]}  Nf6 {[%clk 0:02:55]} 13. Bc2 {[%clk 0:03:02]}  b6 {[%clk 0:02:55]} 14. Ne5 {[%clk 0:02:57]}  Bb7 {[%clk 0:02:55]} 15. Qf3 {[%clk 0:02:48]}  Rac8 {[%clk 0:02:54]} 16. Qg3 {[%clk 0:02:38]}  c5 {[%clk 0:02:49]} 17. Bxh6 {[%clk 0:02:25]}  Ne8 {[%clk 0:02:16]} 18. Be3 {[%clk 0:02:15]}  cxd4 {[%clk 0:02:09]} 19. Bxd4 {[%clk 0:02:14]}  Nf6 {[%clk 0:01:56]} 20. Qh4 {[%clk 0:02:10]}  Rfd8 {[%clk 0:00:59]} 21. Ng4 {[%clk 0:02:02]}  e5 {[%clk 0:00:31]} 22. Bxe5 {[%clk 0:01:42]}  Bxe5 {[%clk 0:00:30]} 23. Rxe5 {[%clk 0:01:41]} 1-0


[Site "https://www.chess.com"]